bitfinex/quotes_BTCUSD_20251226
["timestamp","ask_amount","ask_price","bid_price","bid_amount"]
[1766761688497,0.0114742,87152.0,87136.0,0.0081111]
[1766761688693,0.01147433,87151.0,87135.0,0.069311]
[1766761688959,0.01147381,87155.0,87135.0,0.069311]
[1766761689097,0.01147394,87154.0,87135.0,0.069311]
[1766761689298,0.01147486,87147.0,87131.0,0.0118]
[1766761689502,0.01147367,87156.0,87132.0,0.07041]
[1766761689831,0.01147354,87157.0,87134.0,1e-08]
[1766761689832,0.05737084,87153.0,87134.0,1e-08]
[1766761690034,0.01147578,87140.0,87115.0,0.07041]
[1766761690238,0.01024481,87152.0,87115.0,0.07041]
[1766761690239,0.2294341,87173.0,87116.0,0.08221]
[1766761690421,0.01147618,87137.0,87118.0,0.07041]
[1766761690621,0.06886209,87131.0,87118.0,0.07041]
[1766761690817,0.05738185,87136.0,87118.0,0.07041]
[1766761691046,0.01147644,87135.0,87118.0,0.07041]
[1766761691442,0.05738099,87137.0,87118.0,0.07041]
[1766761691646,0.01147723,87129.0,87115.0,7.385e-05]
[1766761692003,0.01147749,87127.0,87110.0,0.001]
[1766761692183,0.01147907,87115.0,87110.0,0.00110773]
[1766761692346,0.06887982,87109.0,87093.0,0.07041]
[1766761692547,0.01147881,87117.0,87094.0,0.0118]
[1766761692748,0.01147921,87114.0,87094.0,0.0118]
[1766761692952,0.01147934,87113.0,87094.0,0.0118]
[1766761693157,0.01025284,87112.0,87094.0,0.01215885]
[1766761693484,0.01147947,87112.0,87094.0,0.01215885]
[1766761693689,0.0114796,87111.0,87094.0,0.01215885]
[1766761693831,0.01148,87108.0,87094.0,0.01215885]
[1766761694038,0.22957631,87117.0,87094.0,0.01215885]
[1766761694237,0.0114796,87111.0,87094.0,0.01215885]
[1766761694454,0.01147934,87113.0,87094.0,0.01215885]
[1766761694704,0.0114796,87111.0,87094.0,0.01215885]
[1766761695002,0.05739471,87117.0,87094.0,0.01215885]
[1766761695192,0.02327868,87118.0,87094.0,0.01215885]
[1766761695193,0.02172142,87116.0,87094.0,0.01215885]
[1766761695397,0.01147947,87112.0,87094.0,0.02041574]
[1766761695596,0.0118,87118.0,87094.0,0.01215885]
[1766761695757,0.01147907,87115.0,87094.0,0.01215885]
[1766761695956,0.0118,87118.0,87094.0,0.08519885]
[1766761696180,0.01147921,87114.0,87094.0,0.08519885]
[1766761696381,0.01147934,87113.0,87094.0,0.08519885]
[1766761696546,0.01147921,87114.0,87094.0,0.08519885]
[1766761696942,0.01147934,87113.0,87094.0,0.08519885]
[1766761697169,0.01147907,87115.0,87094.0,0.08519885]
[1766761697401,0.01147881,87117.0,87094.0,0.08519885]
[1766761697577,0.01147907,87115.0,87094.0,0.08519885]
[1766761697782,0.06887547,87114.0,87094.0,0.08519885]
[1766761697989,0.01147934,87113.0,87094.0,0.08519885]
[1766761698192,0.01148118,87099.0,87080.0,0.07304]
[1766761698392,0.01148131,87098.0,87080.0,0.07304]
[1766761698611,0.01148145,87097.0,87080.0,0.07304]
[1766761698836,0.01148158,87096.0,87080.0,0.07304]
[1766761699201,0.01148145,87097.0,87080.0,0.07304]
[1766761699468,0.01148184,87094.0,87080.0,0.07304]
[1766761699848,0.01184032,87099.0,87080.0,0.07304]
[1766761700010,0.01148158,87096.0,87080.0,0.07304]
[1766761700205,0.01148184,87094.0,87080.0,0.07304]
[1766761700392,0.01148158,87096.0,87080.0,0.07304]
[1766761700593,0.01148145,87097.0,87080.0,0.07304]
[1766761701005,0.01148158,87096.0,87080.0,0.07304]
[1766761701639,0.00035914,87099.0,87080.0,0.07304]
[1766761701854,0.01147815,87122.0,87091.0,0.07304]
[1766761702044,1.14742453,87152.0,87091.0,0.07304]
[1766761702045,0.01021773,87121.0,87093.0,0.07304]
[1766761702304,0.01147749,87127.0,87095.0,0.07304]
[1766761702496,0.01147763,87126.0,87095.0,0.07304]
[1766761702737,0.01147881,87117.0,87095.0,0.07304]
[1766761702892,0.01147855,87119.0,87095.0,0.07304]
[1766761703303,0.20172466,87126.0,87095.0,0.07304]
[1766761703537,0.01147855,87119.0,87097.0,0.07304]
[1766761703890,0.01147868,87118.0,87097.0,0.07304]
[1766761704243,0.01147894,87116.0,87097.0,0.07304]
[1766761704410,0.01147868,87118.0,87090.0,0.001]
[1766761704411,0.01148118,87099.0,87090.0,0.001]
[1766761704593,0.01148131,87098.0,87077.0,0.07304]
[1766761704793,0.00010769,87099.0,87077.0,0.07304]
[1766761704998,0.01148211,87092.0,87077.0,0.07304]
[1766761705196,0.01148211,87092.0,87075.0,0.0118]
[1766761705197,0.01148263,87088.0,87075.0,0.0118]
[1766761705403,0.01148408,87077.0,87063.0,0.07304]
[1766761705609,0.01148527,87068.0,87046.0,0.04592]
[1766761705804,0.22966245,87085.0,87044.0,0.0002]
[1766761705805,0.01148633,87060.0,87045.0,0.07304]
[1766761706037,0.0118,87071.0,87045.0,0.07304]
[1766761706038,0.01148593,87063.0,87045.0,0.07304]
[1766761706244,0.0118,87071.0,87031.0,0.04592]
[1766761706245,0.01148765,87050.0,87031.0,0.0118]
[1766761706443,0.06920778,87049.0,87017.0,0.07304]
[1766761706758,0.06792235,87048.0,87017.0,0.05434433]
[1766761706963,0.06792235,87048.0,87000.0,0.1]
[1766761706964,0.02200235,87047.0,87021.0,0.07304]
[1766761707158,0.02145335,87046.0,87030.0,0.07304]
[1766761707398,0.04596,87056.0,87046.0,0.00055]
[1766761707592,0.06368987,87064.0,87046.0,0.00055]
[1766761707593,0.0679555,87055.0,87046.0,0.00055]
[1766761707745,0.0101955,87054.0,87030.0,0.06560287]
[1766761707928,0.02938123,87085.0,87021.0,0.01190773]
[1766761707929,0.0219955,87053.0,87032.0,0.07304]
[1766761708144,0.01,87087.0,87034.0,0.07304]
[1766761708145,0.0101955,87052.0,87034.0,0.07304]
[1766761708472,0.02328659,87058.0,87034.0,0.07304]
[1766761708673,0.01148672,87057.0,87034.0,0.07304]
[1766761708830,0.0118,87058.0,87034.0,0.0664367]
[1766761709029,0.22968506,87076.0,87034.0,0.0664367]
[1766761709030,0.05742667,87068.0,87034.0,0.07557673]
[1766761709230,0.01148659,87058.0,87034.0,0.0664367]
[1766761709491,0.02328672,87057.0,87022.0,0.07304]
[1766761709696,0.0118,87057.0,87022.0,0.07304]
[1766761709833,0.0118,87057.0,87021.0,0.00010224]
[1766761709834,0.0114858,87064.0,87024.0,0.07304]
[1766761710175,0.01148606,87062.0,87026.0,0.07304]
[1766761710413,0.01148369,87080.0,87034.0,0.07304]
[1766761710561,0.01148435,87075.0,87043.0,0.07304]
[1766761710878,0.0574327,87059.0,87043.0,0.07304]
[1766761711086,0.06891685,87062.0,87043.0,0.07304]
[1766761711087,0.01148685,87056.0,87043.0,0.07304]
[1766761711318,0.0118,87058.0,87035.0,0.07304]
[1766761711450,0.5395,87075.0,87037.0,0.07304]
[1766761711649,0.01148593,87063.0,87038.0,0.07304]
[1766761711849,0.01148633,87060.0,87038.0,0.02070403]
[1766761712075,0.01148619,87061.0,87038.0,0.02070403]
[1766761712282,0.01148488,87071.0,87038.0,0.02070403]
[1766761712487,0.01148527,87068.0,87038.0,0.02070403]
[1766761713009,0.0118,87070.0,87040.0,0.07304]
[1766761713151,0.0118,87070.0,87042.0,0.07304]
[1766761713354,0.01148527,87068.0,87042.0,0.07304]
[1766761713805,0.02328501,87070.0,87042.0,0.05808796]
[1766761714229,0.01148408,87077.0,87042.0,0.05808796]
[1766761714443,0.01148474,87072.0,87042.0,0.05808796]
[1766761714661,0.0118,87073.0,87042.0,0.05808796]
[1766761714907,0.0114825,87089.0,87045.0,0.12382197]
[1766761715105,0.01148329,87083.0,87046.0,0.07304]
[1766761715265,0.01148369,87080.0,87046.0,0.07304]
[1766761715463,0.06889752,87086.0,87046.0,0.07304]
[1766761715659,0.06889752,87086.0,87042.0,0.04596]
[1766761715660,0.01148316,87084.0,87048.0,0.07304]
[1766761715985,0.0118,87088.0,87050.0,0.07304]
[1766761716409,0.06426788,87111.0,87071.0,0.06447271]
[1766761716572,0.04596,87118.0,87074.0,0.07304]
[1766761716752,0.04596,87118.0,87075.0,0.03694655]
[1766761716753,0.00035943,87118.0,87075.0,0.03694655]
[1766761716957,0.00035943,87118.0,87085.0,0.01148303]
[1766761717311,0.00035943,87118.0,87088.0,0.07304]
[1766761717511,0.00035943,87118.0,87091.0,0.07304]
[1766761717721,0.00035943,87118.0,87092.0,0.07304]
[1766761717929,0.00035943,87118.0,87094.0,0.07304]
[1766761718187,0.00035943,87118.0,87096.0,0.07304]
[1766761719709,0.01148066,87103.0,87096.0,0.06059573]
[1766761719874,0.01148066,87103.0,86991.0,0.14317996]
[1766761719875,0.01148197,87093.0,87073.0,0.119]
[1766761720071,0.01148211,87092.0,87077.0,0.0118]
[1766761720286,0.01148131,87098.0,87073.0,0.07304]
[1766761720287,0.05741315,87089.0,87073.0,0.07304]
[1766761720488,0.0114829,87086.0,87070.0,0.0118]
[1766761720687,0.01148316,87084.0,87059.0,0.07304]
[1766761720895,0.01020326,87083.0,87060.0,0.08484]
[1766761721223,0.01020326,87082.0,87060.0,0.08484]
[1766761721416,0.01020326,87081.0,87060.0,0.08494773]
[1766761721633,0.01020665,87080.0,87060.0,0.08494773]
[1766761721834,0.08069439,87090.0,87060.0,0.08494773]
[1766761721835,0.01020665,87079.0,87060.0,0.08494773]
[1766761722119,0.01020665,87079.0,87047.0,0.0139284]
[1766761722120,0.01148422,87076.0,87058.0,0.0118]
[1766761722278,0.01148422,87076.0,87056.0,0.0118]
[1766761722279,0.06890699,87074.0,87056.0,0.0118]
[1766761722482,0.021691,87075.0,87046.0,0.07304]
[1766761722483,0.02169126,87073.0,87046.0,0.07304]
[1766761722717,0.00010774,87076.0,87046.0,0.07304]
[1766761722718,0.01020665,87072.0,87046.0,0.07304]
[1766761723023,0.01020665,87072.0,86965.0,1.14988119]
[1766761723024,0.01148751,87051.0,87033.0,0.0118]
[1766761723164,0.01020665,87050.0,87034.0,0.0118]
[1766761723364,0.0118,87056.0,87034.0,0.0118]
[1766761723615,0.01020429,87055.0,87034.0,0.0118]
[1766761723815,0.01020429,87054.0,87034.0,0.08466]
[1766761724024,0.01020429,87053.0,87034.0,0.08466]
[1766761724198,0.01020429,87052.0,87035.0,0.07386]
[1766761724380,0.01020429,87051.0,87035.0,0.07386]
[1766761724586,0.0118,87056.0,87035.0,0.07386]
[1766761724810,0.01019725,87055.0,87035.0,0.07386]
[1766761725014,0.01019725,87054.0,87035.0,0.07386]
[1766761725227,0.01019725,87053.0,87035.0,0.07386]
[1766761725426,0.01019725,87052.0,87035.0,0.07386]
[1766761725606,0.0118,87056.0,87035.0,0.07386]
[1766761726521,0.01148712,87054.0,87035.0,0.07386]
[1766761726720,0.01148712,87054.0,87035.0,0.06786]
[1766761726922,0.01148685,87056.0,87035.0,0.06786]
[1766761727125,0.01148659,87058.0,87035.0,0.06786]
[1766761727344,0.01148725,87053.0,87035.0,0.06786]
[1766761727551,0.04596,87072.0,87035.0,0.06786]
[1766761727552,0.0118,87056.0,87035.0,0.06786]
[1766761727753,0.01148751,87051.0,87035.0,0.06786]
[1766761727955,0.01148778,87049.0,87035.0,0.06786]
[1766761728167,0.01148778,87049.0,87021.0,0.04596]
[1766761728168,0.0114891,87039.0,87021.0,0.07386]
[1766761728360,0.01148897,87040.0,87025.0,0.0118]
[1766761728564,0.0118,87045.0,87025.0,0.0118]
[1766761728768,0.02906341,87045.0,87025.0,0.0118]
[1766761728944,0.0118,87045.0,87025.0,0.0118]
[1766761729355,0.01148963,87035.0,87025.0,0.0118]
[1766761729555,0.0118,87045.0,87021.0,0.07386]
[1766761729781,0.0114891,87039.0,87021.0,0.07386]
[1766761729965,0.0114887,87042.0,87022.0,0.008566]
[1766761730282,0.0118,87052.0,87021.0,0.07386]
[1766761730460,0.0119077,87052.0,87021.0,0.07386]
[1766761732695,0.01148765,87050.0,87021.0,0.07386]
[1766761732905,0.01148804,87047.0,87021.0,0.07386]
[1766761733102,0.06892512,87051.0,87021.0,0.07386]
[1766761733103,0.01148699,87055.0,87021.0,0.07386]
[1766761733507,0.01148712,87054.0,87021.0,0.07386]
[1766761733700,0.02761114,87051.0,87021.0,0.07386]
[1766761733902,0.01148765,87050.0,87021.0,0.07386]
[1766761734143,0.02761114,87051.0,87021.0,0.07386]
[1766761734453,0.01612363,87051.0,87021.0,0.07386]
[1766761735091,0.01612363,87051.0,87017.0,0.0118]
[1766761735092,0.01612363,87051.0,87018.0,0.07386]
[1766761735312,0.0119077,87052.0,87020.0,0.07386]
[1766761735436,0.00935949,87052.0,87019.0,0.1335372]
[1766761735652,0.00935949,87052.0,87020.0,0.07386]
[1766761735859,0.0001077,87052.0,87020.0,0.07386]
[1766761736756,0.0001077,87052.0,87019.0,0.00971523]
[1766761736757,0.01148606,87062.0,87023.0,0.07386]
[1766761736955,0.0114858,87064.0,87025.0,0.07386]
[1766761737131,0.05743098,87062.0,87027.0,0.07386]
[1766761737332,0.0114858,87064.0,87029.0,0.07386]
[1766761737546,0.01148606,87062.0,87029.0,0.07386]
[1766761737759,0.01020834,87061.0,87031.0,0.07386]
[1766761737969,0.01148514,87069.0,87035.0,0.12382197]
[1766761737970,0.01020834,87060.0,87035.0,0.12382197]
[1766761738115,0.22967553,87080.0,87037.0,0.07386]
[1766761738116,0.01148422,87076.0,87037.0,0.07386]
[1766761738319,0.01020973,87075.0,87039.0,0.07386]
[1766761738527,0.01148461,87073.0,87041.0,0.07386]
[1766761738729,0.01148514,87069.0,87041.0,0.07386]
[1766761738938,0.01148501,87070.0,87041.0,0.07386]
[1766761739136,0.01148514,87069.0,87041.0,0.07386]
[1766761739338,0.01148527,87068.0,87041.0,0.07386]
[1766761739546,0.01148633,87060.0,87043.0,0.07386]
[1766761739748,0.0118,87073.0,87044.0,0.08566]
[1766761739996,0.01148593,87063.0,87045.0,0.08566]
[1766761740196,0.0114854,87067.0,87045.0,0.08566]
[1766761740421,0.0114858,87064.0,87045.0,0.08566]
[1766761740630,0.01148553,87066.0,87045.0,0.08566]
[1766761740856,0.01148672,87057.0,87045.0,0.0118]
[1766761741064,0.06892114,87056.0,87037.0,0.0118]
[1766761741267,0.0118,87055.0,87038.0,0.07386]
[1766761741473,0.8686,87075.0,87038.0,0.07386]
[1766761741474,0.01148501,87070.0,87038.0,0.07386]
[1766761741698,0.05776,87072.0,87038.0,0.07386]
[1766761741913,0.05743429,87056.0,87038.0,0.07386]
[1766761742123,0.0118,87060.0,87039.0,0.0118]
[1766761742339,0.01148672,87057.0,87039.0,0.0118]
[1766761742627,0.0118,87061.0,87039.0,0.0118]
[1766761742628,0.0689115,87069.0,87040.0,0.07386]
[1766761742835,0.01148567,87065.0,87040.0,0.07386]
[1766761743038,0.01148567,87065.0,87039.0,0.0058]
[1766761743039,0.01148567,87065.0,87042.0,2e-08]
[1766761743249,0.01148474,87072.0,87042.0,2e-08]
[1766761743465,0.0118,87074.0,87040.0,0.07386]
[1766761743677,0.01148619,87061.0,87041.0,0.0118]
[1766761743896,0.0118,87062.0,87041.0,0.08566]
[1766761744122,0.0118,87072.0,87041.0,0.08566]
[1766761744349,0.01148382,87079.0,87041.0,0.08566]
[1766761744578,0.01148408,87077.0,87041.0,0.08566]
[1766761744796,0.01148382,87079.0,87043.0,0.07386]
[1766761745004,0.02328395,87078.0,87045.0,0.07386]
[1766761745202,0.0118,87077.0,87045.0,0.07386]
[1766761745447,0.01148448,87074.0,87045.0,0.07386]
[1766761745622,0.46919042,87110.0,87034.0,0.07386]
[1766761745623,0.01148712,87054.0,87034.0,0.07386]
[1766761745806,0.01148791,87048.0,87034.0,0.07386]
[1766761746022,0.01148844,87044.0,87031.0,0.0118]
[1766761746305,0.0114891,87039.0,87031.0,0.0118]
[1766761746434,0.0114891,87039.0,87026.0,0.0118]
[1766761746641,0.0114891,87039.0,87023.0,0.0460677]
[1766761746642,0.0114891,87039.0,87023.0,0.0001077]
[1766761746895,0.0114891,87039.0,87021.0,0.07386]
[1766761747022,0.01148897,87040.0,87021.0,0.07386]
[1766761747230,0.01148897,87040.0,87022.0,0.008566]
[1766761747457,0.0118,87042.0,87022.0,0.008566]
[1766761747709,0.06270593,87062.0,87023.0,0.07386]
[1766761747924,0.06892352,87053.0,87023.0,0.07386]
[1766761748127,0.01148831,87045.0,87023.0,0.07386]
[1766761748329,0.0118,87046.0,87023.0,0.07386]
[1766761748539,0.0118,87046.0,87010.0,0.0118]
[1766761748540,0.01149108,87024.0,87010.0,0.0118]
[1766761748749,0.0118,87046.0,87010.0,0.0118]
[1766761748750,0.01149213,87016.0,87010.0,0.0118]
[1766761748990,0.01149227,87015.0,87001.0,0.0118]
[1766761749214,0.0118,87029.0,87001.0,0.01190788]
[1766761749421,0.04596,87040.0,87001.0,0.01190788]
[1766761749422,0.9787,87040.0,87003.0,0.07386]
[1766761749629,2.3689,87044.0,87005.0,0.07386]
[1766761749834,0.0118,87043.0,87005.0,0.07386]
[1766761750049,0.01149015,87031.0,87005.0,0.07386]
[1766761750268,0.02203124,87030.0,87005.0,0.07386]
[1766761750474,0.01023124,87029.0,87005.0,0.07386]
[1766761750679,0.02172166,87029.0,87005.0,0.07386]
[1766761751001,0.01149121,87023.0,87005.0,0.07386]
[1766761751220,0.0118,87030.0,87005.0,0.07386]
[1766761751221,0.01023124,87022.0,87005.0,0.07386]
[1766761751430,0.01023124,87021.0,87005.0,1e-08]
[1766761751636,0.01023543,87020.0,87002.0,0.0118]
[1766761751857,0.01023543,87019.0,87001.0,0.01180001]
[1766761752067,0.22980185,87032.0,87001.0,0.01180001]
[1766761752068,0.01023543,87018.0,87001.0,0.01180001]
[1766761752281,0.01023543,87018.0,86990.0,0.04596]
[1766761752282,0.01023543,87017.0,86996.0,0.0118]
[1766761752487,0.01023543,87016.0,86996.0,0.0118]
[1766761752696,0.01023543,87015.0,86997.0,0.07386]
[1766761752901,0.01023543,87014.0,86997.0,0.07386]
[1766761753101,0.00010782,87017.0,86997.0,0.07386]
[1766761753525,0.00010782,87017.0,86997.0,0.01633462]
[1766761753730,0.01149227,87015.0,86997.0,0.01633462]
[1766761753931,0.01149213,87016.0,86997.0,0.01633462]
[1766761754189,0.0114924,87014.0,86997.0,0.01633462]
[1766761754371,0.01149279,87011.0,86995.0,0.0118]
[1766761754714,0.01149213,87016.0,86995.0,0.0118]
[1766761754916,0.01159982,87017.0,86995.0,0.0118]
[1766761754917,0.00010782,87017.0,86996.0,0.07017]
[1766761755122,0.0118,87023.0,86996.0,0.07017]
[1766761755385,0.01149174,87019.0,86997.0,0.01279296]
[1766761755558,0.01149161,87020.0,86996.0,0.07027782]
[1766761755763,0.01149174,87019.0,86996.0,0.07027782]
[1766761755965,0.0118,87023.0,86996.0,0.07027782]
[1766761757459,0.0118,87022.0,86996.0,0.07027782]
[1766761757680,0.0118,87022.0,86997.0,0.02518594]
[1766761758237,0.01148936,87037.0,86998.0,0.07017]
[1766761758429,0.0118,87036.0,86998.0,0.07017]
[1766761758625,0.05745268,87029.0,86998.0,0.07017]
[1766761758829,0.0068943,87028.0,86998.0,0.07017]
[1766761759075,0.08129976,87034.0,86998.0,0.07017]
[1766761759355,0.01148989,87033.0,86998.0,0.07017]
[1766761759523,0.01149015,87031.0,86998.0,0.07017]
[1766761759722,0.06981,87034.0,86998.0,0.07017]
[1766761759723,0.01149081,87026.0,86998.0,0.07017]
[1766761760401,0.02329081,87026.0,86998.0,0.07017]
[1766761760606,0.04493029,87025.0,86998.0,0.07017]
[1766761760806,0.01149147,87021.0,86998.0,0.07017]
[1766761761191,0.01149161,87020.0,86998.0,0.07017]
[1766761761445,0.02329081,87026.0,86998.0,0.07017]
[1766761761886,0.01149147,87021.0,86998.0,0.07017]
[1766761762306,0.0118,87026.0,86996.0,0.00010782]
[1766761762518,0.01149332,87007.0,86984.0,0.07017]
[1766761762735,0.00010786,87007.0,86985.0,0.0118]
[1766761762997,0.01149372,87004.0,86986.0,0.0118]
[1766761763215,0.00010786,87007.0,87001.0,0.00025254]
[1766761763805,0.0118,87011.0,87001.0,0.00025254]
[1766761764452,0.01149319,87008.0,87001.0,0.00025254]
[1766761764900,0.01149346,87006.0,87001.0,0.00025254]
[1766761765108,0.0102112,87005.0,87001.0,0.00025254]
[1766761765316,0.01149253,87013.0,87001.0,0.00025254]
[1766761765533,0.01020948,87010.0,87001.0,0.00025254]
[1766761765738,0.01149359,87005.0,87001.0,0.00025254]
[1766761765942,0.0217027,87004.0,86985.0,0.00580254]
[1766761766146,0.01020898,87003.0,86986.0,0.00759725]
[1766761766357,0.02946374,87033.0,86985.0,0.00616232]
[1766761766358,0.01149147,87021.0,86987.0,0.07017]
[1766761766583,0.01149147,87021.0,86985.0,0.00616232]
[1766761766584,0.01,87057.0,87016.0,0.12382197]
[1766761766816,0.02201211,87056.0,87017.0,0.08197]
[1766761767056,0.01021211,87055.0,87019.0,0.07017]
[1766761767263,0.01021211,87054.0,87019.0,0.08166174]
[1766761767463,0.01021211,87053.0,87019.0,0.08166174]
[1766761767619,0.02946374,87084.0,87035.0,0.01148963]
[1766761767817,0.02946374,87084.0,87037.0,0.07017]
[1766761767818,0.01148422,87076.0,87037.0,0.07017]
[1766761768044,0.05742176,87075.0,87037.0,0.07017]
[1766761768262,0.01148408,87077.0,87037.0,0.07017]
[1766761768464,0.06890517,87077.0,87037.0,0.07017]
[1766761768668,0.0001079,87084.0,87039.0,0.0816591]
[1766761768983,0.01148382,87079.0,87041.0,0.07017]
[1766761769141,0.01148329,87083.0,87041.0,0.07017]
[1766761769346,0.01148395,87078.0,87041.0,0.07017]
[1766761769548,0.01148422,87076.0,87041.0,0.07017]
[1766761769754,0.01148448,87074.0,87043.0,0.07017]
[1766761769954,0.01148474,87072.0,87043.0,0.07017]
[1766761770159,0.02328435,87075.0,87043.0,0.07017]
[1766761770364,0.02328435,87075.0,86996.0,0.08582294]
[1766761770365,0.0118,87075.0,87044.0,0.08197]
[1766761771099,0.01148461,87073.0,87044.0,0.08197]
[1766761771242,0.01148461,87073.0,87046.0,0.07017]
[1766761771446,0.01148474,87072.0,87046.0,0.07017]
[1766761771642,0.01148448,87074.0,87046.0,0.07017]
[1766761772488,0.02328435,87075.0,87046.0,0.07017]
[1766761772685,0.0118,87075.0,87046.0,0.07017]
[1766761772896,0.0118,87075.0,87019.0,0.07017]
[1766761772897,0.06981,87074.0,87019.0,0.07017]
[1766761773107,0.01148553,87066.0,87022.0,0.07017]
[1766761773312,0.0114858,87064.0,87022.0,0.07017]
[1766761773626,0.01148672,87057.0,87024.0,0.07017]
[1766761773752,0.0118,87056.0,87026.0,0.07017]
[1766761773952,0.0118,87056.0,87025.0,0.12382197]
[1766761773953,0.0118,87055.0,87028.0,0.07017]
[1766761774408,0.0118,87055.0,87027.0,0.0251752]
[1766761774409,0.0118,87061.0,87030.0,0.07017]
[1766761774641,0.01148501,87070.0,87031.0,0.08197]
[1766761774976,0.01148646,87059.0,87032.0,0.08197]
[1766761775086,0.01148672,87057.0,87033.0,0.01072532]
[1766761775289,0.0118,87056.0,87033.0,0.01072532]
[1766761775521,0.01148501,87070.0,87033.0,0.07017]
[1766761775718,0.01148501,87070.0,87035.0,0.07017]
[1766761775919,0.0118,87069.0,87035.0,0.07017]
[1766761776554,0.02328514,87069.0,87035.0,0.07017]
[1766761776805,0.02946374,87088.0,87043.0,0.01148857]
[1766761776993,0.02946374,87088.0,87032.0,0.0118]
[1766761776994,0.0118,87087.0,87054.0,0.07017]
[1766761777212,0.06981,87102.0,87058.0,0.07017]
[1766761777414,0.01148105,87100.0,87067.0,0.07017]
[1766761777615,0.01148105,87100.0,87052.0,0.06892427]
[1766761777616,0.01148118,87099.0,87068.0,0.08197]
[1766761777815,0.01148118,87099.0,87069.0,0.012793]
[1766761777990,0.01148158,87096.0,87069.0,0.012793]
[1766761778311,0.02328052,87104.0,87070.0,0.07017]
[1766761778538,0.00010787,87104.0,87080.0,0.07017]
[1766761778705,0.22953792,87132.0,87070.0,0.57785696]
[1766761778706,0.0118,87119.0,87082.0,0.07017]
[1766761778848,0.0118,87119.0,87084.0,0.07017]
[1766761780214,0.01148066,87103.0,87082.0,0.00035987]
[1766761780414,0.01148052,87104.0,87083.0,0.0118]
[1766761780732,0.0118,87106.0,87084.0,0.00581199]
[1766761781086,0.01147947,87112.0,87084.0,0.00581199]
[1766761781286,0.01147947,87112.0,87082.0,0.00035987]
[1766761781287,0.01148013,87107.0,87082.0,0.00035987]
[1766761781487,0.000359,87082.0,87045.0,0.07017]
[1766761781847,0.05742133,87076.0,87052.0,0.07017]
[1766761782052,0.01148527,87068.0,87051.0,0.04596]
[1766761782188,0.01148514,87069.0,87047.0,0.0118]
[1766761782524,0.05742242,87074.0,87047.0,0.08197]
[1766761782726,0.0084854,87067.0,87047.0,0.0118]
[1766761782965,0.01148646,87059.0,87045.0,0.00010787]
[1766761783189,0.05742911,87064.0,87041.0,0.0118]
[1766761783190,0.01148672,87057.0,87041.0,0.0118]
[1766761783403,0.01148659,87058.0,87041.0,0.01190796]
[1766761783606,0.0114858,87064.0,87041.0,0.01190796]
[1766761783811,0.01148606,87062.0,87041.0,0.01190796]
[1766761784218,0.01148619,87061.0,87041.0,0.01190796]
[1766761784432,0.06892336,87054.0,87041.0,0.01190796]
[1766761784642,0.01148712,87054.0,87041.0,0.01190796]
[1766761784846,0.06892304,87054.0,87041.0,0.01190796]
[1766761785050,0.01148712,87054.0,87041.0,0.01135796]
[1766761785257,0.0118,87058.0,87041.0,0.01135796]
[1766761785788,0.01148329,87083.0,87058.0,0.000549]
[1766761785932,0.02328448,87074.0,87051.0,0.0118]
[1766761786137,0.01148514,87069.0,87050.0,0.0118]
[1766761786341,0.06891062,87070.0,87050.0,0.0118]
[1766761786544,0.05742571,87069.0,87050.0,1e-08]
[1766761786754,0.06891604,87063.0,87050.0,1e-08]
[1766761786961,0.0114854,87067.0,87050.0,1e-08]
[1766761787167,0.01148474,87072.0,87050.0,1e-08]
[1766761787379,0.0118,87073.0,87050.0,1e-08]
[1766761788010,0.04596,87083.0,87051.0,0.0118]
[1766761788151,0.01148408,87077.0,87051.0,0.0118]
[1766761788531,0.05741806,87081.0,87051.0,0.0118]
[1766761788532,0.0118,87082.0,87052.0,0.07491]
[1766761788731,0.01148263,87088.0,87052.0,0.07491]
[1766761788938,0.0118,87081.0,87052.0,0.07491]
[1766761789389,0.01148382,87079.0,87052.0,0.07491]
[1766761789599,0.01148395,87078.0,87052.0,0.07491]
[1766761789806,0.00921847,87078.0,87052.0,0.07491]
[1766761789959,0.01148448,87074.0,87052.0,0.07491]
[1766761790358,0.01148408,87077.0,87050.0,0.0118]
[1766761790547,0.0118,87081.0,87050.0,0.0118]
[1766761790743,0.0118,87080.0,87051.0,0.0118]
[1766761791147,0.01018632,87079.0,87051.0,0.0118]
[1766761791348,0.01023711,87078.0,87051.0,0.0118]
[1766761791563,0.05741747,87082.0,87052.0,0.07491]
[1766761791774,0.4691855,87111.0,87051.0,0.0118]
[1766761791775,0.0118,87081.0,87053.0,0.12382197]
[1766761792005,0.02946374,87111.0,87053.0,0.12382197]
[1766761792006,0.0118,87096.0,87082.0,0.00055]
[1766761792217,0.07416,87111.0,87082.0,0.00055]
[1766761792398,0.01147987,87109.0,87073.0,0.08671]
[1766761792641,0.22957769,87117.0,87073.0,0.08671]
[1766761792642,0.01019193,87108.0,87076.0,0.07491]
[1766761792837,0.0118,87117.0,87079.0,0.07491]
[1766761793069,0.01147934,87113.0,87079.0,0.07491]
[1766761793275,0.01147947,87112.0,87079.0,0.07491]
[1766761793543,0.01148118,87099.0,87080.0,0.0219203]
[1766761793713,0.01148092,87101.0,87079.0,0.07491]
[1766761793887,0.01148171,87095.0,87077.0,0.0118]
[1766761794054,0.0114825,87089.0,87065.0,0.07491]
[1766761794258,0.0114825,87089.0,87066.0,0.0118]
[1766761794503,0.0102027,87088.0,87066.0,0.0118]
[1766761794708,0.0118,87094.0,87066.0,0.0118]
[1766761794853,0.0102028,87093.0,87066.0,0.0118]
[1766761795060,0.01148263,87088.0,87066.0,0.0118]
[1766761795257,0.01148303,87085.0,87066.0,0.0118]
[1766761795489,0.0102028,87084.0,87052.0,0.07491]
[1766761795684,0.00035943,87088.0,87061.0,0.07491]
[1766761795887,0.00035943,87088.0,87063.0,0.07491]
[1766761796089,0.00035943,87088.0,87063.0,0.0118]
[1766761796305,0.01184206,87088.0,87063.0,0.0118]
[1766761796618,0.0114829,87086.0,87063.0,0.0118]
[1766761796831,0.01184206,87088.0,87063.0,0.0118]
[1766761797033,0.00035943,87088.0,87063.0,0.0118]
[1766761797245,0.00035943,87088.0,87063.0,0.08671]
[1766761797462,4.3e-07,87088.0,87065.0,0.07491]
[1766761797611,0.10335954,87109.0,87064.0,0.13249297]
[1766761797612,0.02946374,87116.0,87078.0,0.12382197]
[1766761797810,0.00010779,87116.0,87080.0,0.07491]